lending/lending_fUSD_20240411
["ID","MTS","AMOUNT","RATE_DAILY","PERIOD"]
[322174465,1712863870249,-9726.64,0.00027945,2]
[322174466,1712863870260,-500.0,0.00027945,2]
[322174467,1712863870270,-3590.29,0.00027945,2]
[322174468,1712863870279,-501.06,0.00027945,2]
[322174469,1712863870289,-3226.22,0.00027945,2]
[322174470,1712863870300,-500.0,0.00027945,2]
[322174471,1712863870315,-769.9,0.00027945,2]
[322174472,1712863870324,-7238.93,0.00027945,2]
[322174473,1712863870333,-837.7,0.00027945,2]
[322174474,1712863870343,-500.0,0.00027945,2]
[322174475,1712863870353,-500.0,0.00027945,2]
[322174476,1712863870362,-866.14,0.00027945,2]
[322174477,1712863870591,-500.0,0.00027945,2]
[322174478,1712863870606,-2879.46,0.00027945,2]
[322174479,1712863870616,-3278.69,0.00027945,2]
[322174480,1712863870626,-1814.55,0.00027945,2]
[322174481,1712863870637,-327.33268508,0.00027945,2]
[322174482,1712863870647,-34421.11,0.00027945,2]
[322174483,1712863870657,-1644.22,0.00027945,2]
[322174484,1712863870666,-500.0,0.00027945,2]
[322174485,1712863870676,-500.0,0.00027945,2]
[322174486,1712863870686,-500.0,0.00027945,2]
[322174487,1712863870695,-689.01,0.00027945,2]
[322174488,1712863870704,-795.68,0.00027945,2]
[322174489,1712863870713,-984.54,0.00027945,2]
[322174490,1712863870723,-3327.03,0.00027945,2]
[322174491,1712863870733,-500.0,0.00027945,2]
[322174492,1712863870742,-500.0,0.00027945,2]
[322174493,1712863870751,-1110.72,0.00027945,2]
[322174494,1712863870761,-4548.52,0.00027945,2]
[322174495,1712863870772,-6971.64,0.00027945,2]
[322174496,1712863870782,-4131.95,0.00027945,2]
[322174497,1712863870794,-1689.02,0.00027945,2]
[322174498,1712863870804,-618.67890194,0.00027945,2]
[322174499,1712863870814,-1399.8,0.00027945,2]
[322174500,1712863870825,-588.2,0.00027945,2]
[322174501,1712863870835,-500.0,0.00027945,2]
[322174502,1712863870845,-2132.57,0.00027945,2]
[322174503,1712863870854,-2460.93,0.00027945,2]
[322174504,1712863870867,-554.56483441,0.00027945,2]
[322174505,1712863870877,-3570.47,0.00027945,2]
[322174506,1712863870887,-940.49,0.00027945,2]
[322174507,1712863870897,-1384.5,0.00027945,2]
[322174508,1712863870907,-523.38,0.00027945,2]
[322174509,1712863870917,-5204.76,0.00027945,2]
[322174510,1712863870927,-7694.44,0.00027945,2]
[322174511,1712863870938,-500.0,0.00027945,2]
[322174512,1712863870948,-500.0,0.00027945,2]
[322174513,1712863870959,-12079.87,0.00027945,2]
[322174514,1712863870969,-6684.72,0.00027945,2]
[322174515,1712863870979,-526.39,0.00027945,2]
[322174516,1712863870988,-5671.76,0.00027945,2]
[322174517,1712863870998,-2162.52,0.00027945,2]
[322174518,1712863871009,-500.0,0.00027945,2]
[322174519,1712863871019,-500.0,0.00027945,2]
[322174520,1712863871029,-2445.18,0.00027945,2]
[322174521,1712863871039,-3880.76,0.00027945,2]
[322174522,1712863871049,-3432.24,0.00027945,2]
[322174523,1712863871058,-730.94,0.00027945,2]
[322174524,1712863871071,-676.92,0.00027945,2]
[322174525,1712863871081,-500.0,0.00027945,2]
[322174526,1712863871091,-534.08,0.00027945,2]
[322174527,1712863871100,-500.0,0.00027945,2]
[322174528,1712863871110,-2554.06,0.00027945,2]
[322174529,1712863871120,-2590.36,0.00027945,2]
[322174530,1712863871129,-1131.02,0.00027945,2]
[322174531,1712863871139,-1707.21,0.00027945,2]
[322174532,1712863871151,-2283.61,0.00027945,2]
[322174533,1712863871161,-7140.03,0.00027945,2]
[322174534,1712863871171,-615.11,0.00027945,2]
[322174535,1712863871181,-731.31,0.00027945,2]
[322174536,1712863871191,-500.0,0.00027945,2]
[322174537,1712863871201,-5613.0,0.00027945,2]
[322174538,1712863871210,-500.0,0.00027945,2]
[322174539,1712863871220,-1489.13,0.00027945,2]
[322174540,1712863871230,-500.0,0.00027945,2]
[322174541,1712863871240,-500.0,0.00027945,2]
[322174542,1712863871250,-500.0,0.00027945,2]
[322174543,1712863871260,-500.0,0.00027945,2]
[322174544,1712863871270,-585.96,0.00027945,2]
[322174545,1712863871279,-11078.41,0.00027945,2]
[322174546,1712863871289,-2508.39,0.00027945,2]
[322174547,1712863871300,-1856.58,0.00027945,2]
[322174548,1712863871309,-500.0,0.00027945,2]
[322174549,1712863871321,-1073.6,0.00027945,2]
[322174550,1712863871331,-4134.48,0.00027945,2]
[322174551,1712863871340,-554.68,0.00027945,2]
[322174552,1712863871349,-2129.83,0.00027945,2]
[322174553,1712863871359,-4212.13,0.00027945,2]
[322174554,1712863871370,-3469.4,0.00027945,2]
[322174555,1712863871380,-500.0,0.00027945,2]
[322174556,1712863871390,-563.5,0.00027945,2]
[322174557,1712863871399,-8111.23,0.00027945,2]
[322174558,1712863871412,-500.0,0.00027945,2]
[322174559,1712863871422,-644.22,0.00027945,2]
[322174560,1712863871434,-526.02,0.00027945,2]
[322174561,1712863871445,-500.0,0.00027945,2]
[322174562,1712863871457,-500.0,0.00027945,2]
[322174563,1712863871467,-609.54,0.00027945,2]
[322174564,1712863871478,-6213.55879472,0.00027973,2]
[322174565,1712863871489,-4610.41930142,0.00028057,2]
[322174566,1712863871498,-162.31567196,0.00028057,2]
[322174567,1712863871520,-3365.16693874,0.00028057,2]
[322174568,1712863871530,-153.90892363,0.00028069,2]
[322174569,1712863871540,-178.31418455,0.00028118,2]
[322174570,1712863871550,-150.5,0.00028188,15]
[322174571,1712863871563,-150.5,0.00028198,15]
[322174572,1712863871574,-6213.55879472,0.00028199,2]
[322174573,1712863871586,-150.5,0.00028208,15]
[322174574,1712863871597,-1889.56073,0.0002821,2]
[322174575,1712863871611,-408.15974753,0.00028217,2]
[322174576,1712863871621,-155.08538378,0.00028217,2]
[322174577,1712863871630,-245.08709582,0.00028218,2]
[322174578,1712863871641,-1182.71,0.00028218,2]
[322174579,1712863871652,-1182.71,0.00028218,2]
[322174580,1712863871662,-500.0,0.00028219,2]
[322174581,1712863871672,-240.04331075,0.00028219,2]
[322174582,1712863871685,-500.0,0.00028219,2]
[322174583,1712863871697,-297.0101391,0.00028219,2]
[322174584,1712863871708,-500.0,0.00028219,2]
[322174585,1712863871717,-500.0,0.00028219,2]
[322174586,1712863871728,-558.78,0.00028219,2]
[322174587,1712863871738,-344.46877423,0.00028219,2]
[322174588,1712863871749,-500.0,0.00028219,2]
[322174589,1712863871758,-781.35,0.00028219,2]
[322174590,1712863871768,-500.0,0.00028219,2]
[322174591,1712863871778,-260.05045636,0.00028219,2]
[322174592,1712863871787,-577.97,0.00028219,2]
[322174593,1712863871798,-500.0,0.00028219,2]
[322174594,1712863871809,-500.0,0.00028219,2]
[322174595,1712863871820,-508.83,0.00028219,2]
[322174596,1712863871829,-500.0,0.00028219,2]
[322174597,1712863871839,-616.34,0.00028219,2]
[322174598,1712863871848,-500.0,0.00028219,2]
[322174599,1712863871857,-500.0,0.00028219,2]
[322174600,1712863871867,-500.0,0.00028219,2]
[322174601,1712863871876,-500.0,0.00028219,2]
[322174602,1712863871886,-500.0,0.00028219,2]
[322174603,1712863871895,-500.0,0.00028219,2]
[322174604,1712863871904,-500.0,0.00028219,2]
[322174605,1712863871914,-500.0,0.00028219,2]
[322174606,1712863871923,-500.0,0.00028219,2]
[322174607,1712863871932,-500.0,0.00028219,2]
[322174608,1712863871943,-500.0,0.00028219,2]
[322174609,1712863871953,-500.0,0.00028219,2]
[322174610,1712863871962,-279.83577357,0.00028219,2]
[322174611,1712863871972,-979.68,0.00028219,2]
[322174612,1712863871982,-678.48,0.00028219,2]
[322174613,1712863871991,-500.0,0.00028219,2]
[322174614,1712863872001,-500.0,0.00028219,2]
[322174615,1712863872010,-500.0,0.00028219,2]
[322174616,1712863872020,-500.0,0.00028219,2]
[322174617,1712863872029,-500.0,0.00028219,2]
[322174618,1712863872039,-500.0,0.00028219,2]
[322174619,1712863872048,-500.0,0.00028219,2]
[322174620,1712863872057,-500.0,0.00028219,2]
[322174621,1712863872067,-500.0,0.00028219,2]
[322174622,1712863872077,-500.0,0.00028219,2]
[322174623,1712863872087,-539.25,0.00028219,2]
[322174624,1712863872097,-956.96,0.00028219,2]
[322174625,1712863872107,-730.66,0.00028219,2]
[322174626,1712863872116,-500.0,0.00028219,2]
[322174627,1712863872126,-520.74,0.00028219,2]
[322174628,1712863872135,-500.0,0.00028219,2]
[322174629,1712863872145,-500.0,0.00028219,2]
[322174630,1712863872155,-500.0,0.00028219,2]
[322174631,1712863872164,-1271.89,0.00028219,2]
[322174632,1712863872174,-582.63,0.00028219,2]
[322174633,1712863872183,-500.0,0.00028219,2]
[322174634,1712863872192,-661.97,0.00028219,2]
[322174635,1712863872201,-500.0,0.00028219,2]
[322174636,1712863872210,-363.30056393,0.00028219,2]
[322174637,1712863872219,-500.0,0.00028219,2]
[322174638,1712863872228,-303.90069482,0.00028219,2]
[322174639,1712863872237,-500.0,0.00028219,2]
[322174640,1712863872247,-500.0,0.00028219,2]
[322174641,1712863872256,-500.0,0.00028219,2]
[322174642,1712863872265,-598.1,0.00028219,2]
[322174643,1712863872275,-500.0,0.00028219,2]
[322174644,1712863872284,-500.0,0.00028219,2]
[322174645,1712863872295,-500.0,0.00028219,2]
[322174646,1712863872304,-530.98528227,0.00028219,2]
[322174647,1712863872314,-500.0,0.00028219,2]
[322174648,1712863872324,-500.0,0.00028219,2]
[322174649,1712863872335,-595.46780414,0.00028219,2]
[322174650,1712863872345,-735.6,0.00028219,2]
[322174651,1712863872354,-500.0,0.00028219,2]
[322174652,1712863872364,-500.0,0.00028219,2]
[322174653,1712863872373,-500.0,0.00028219,2]
[322174654,1712863872382,-724.36,0.00028219,2]
[322174655,1712863872392,-500.0,0.00028219,2]
[322174656,1712863872401,-500.0,0.00028219,2]
[322174657,1712863872410,-500.0,0.00028219,2]
[322174658,1712863872420,-500.0,0.00028219,2]
[322174659,1712863872429,-500.0,0.00028219,2]
[322174660,1712863872439,-500.0,0.00028219,2]
[322174661,1712863872449,-500.0,0.00028219,2]
[322174662,1712863872459,-662.41,0.00028219,2]
[322174663,1712863872470,-500.0,0.00028219,2]
[322174664,1712863872481,-500.0,0.00028219,2]
[322174665,1712863872492,-500.0,0.00028219,2]
[322174666,1712863872503,-500.0,0.00028219,2]
[322174667,1712863872513,-500.0,0.00028219,2]
[322174668,1712863872522,-189.52717701,0.00028219,2]
[322174669,1712863872532,-500.0,0.00028219,2]
[322174670,1712863872542,-500.0,0.00028219,2]
[322174671,1712863872552,-645.77,0.00028219,2]
[322174672,1712863872563,-500.0,0.00028219,2]
[322174673,1712863872573,-500.0,0.00028219,2]
[322174674,1712863872583,-630.18,0.00028219,2]
[322174675,1712863872597,-500.0,0.00028219,2]
[322174676,1712863872608,-538.93,0.00028219,2]
[322174677,1712863872618,-494.91787509,0.00028219,2]
[322174678,1712863872636,-5.08212491,0.00028219,2]
[322174679,1712863872645,-438.75566183,0.00028219,2]
[322174680,1712863872657,-731.54433817,0.00028219,2]
[322174681,1712863872666,-500.0,0.00028219,2]
[322174682,1712863872676,-500.0,0.00028219,2]
[322174683,1712863872687,-500.0,0.00028219,2]
[322174684,1712863872697,-500.0,0.00028219,2]
[322174685,1712863872707,-500.0,0.00028219,2]
[322174686,1712863872718,-500.0,0.00028219,2]
[322174687,1712863872729,-622.48,0.00028219,2]
[322174688,1712863872738,-500.0,0.00028219,2]
[322174689,1712863872748,-500.0,0.00028219,2]
[322174690,1712863872758,-500.0,0.00028219,2]
[322174691,1712863872767,-881.06,0.00028219,2]
[322174692,1712863872777,-776.07,0.00028219,2]
[322174693,1712863872786,-500.0,0.00028219,2]
[322174694,1712863872795,-500.0,0.00028219,2]
[322174695,1712863872805,-500.0,0.00028219,2]
[322174696,1712863872814,-500.0,0.00028219,2]
[322174697,1712863872829,-500.0,0.00028219,2]
[322174698,1712863872838,-500.0,0.00028219,2]
[322174699,1712863872848,-619.23,0.00028219,2]
[322174700,1712863872857,-609.85,0.00028219,2]
[322174701,1712863872867,-500.0,0.00028219,2]
[322174702,1712863872876,-979.3,0.00028219,2]
[322174703,1712863872886,-300.0,0.00028219,2]
[322174704,1712863872895,-500.0,0.00028219,2]
[322174705,1712863872905,-500.0,0.00028219,2]
[322174706,1712863872914,-848.99,0.00028219,2]
[322174707,1712863872924,-500.0,0.00028219,2]
[322174708,1712863872933,-500.0,0.00028219,2]
[322174709,1712863872943,-500.0,0.00028219,2]
[322174710,1712863872952,-556.26,0.00028219,2]
[322174711,1712863872962,-561.42,0.00028219,2]
[322174712,1712863872971,-500.0,0.00028219,2]
[322174713,1712863872983,-750.5,0.00028219,2]
[322174714,1712863872993,-231.88387255,0.00028219,2]
[322174715,1712863873172,-583.46661095,0.00027708,13]
[322174716,1712863873182,-563.50612745,0.00028219,2]
[322174717,1712863873191,-500.0,0.00028219,2]
[322174718,1712863873201,-157.79028195,0.00028219,2]
[322174719,1712863873210,-154.01,0.00028219,2]
[322174720,1712863873500,-353.41727293,0.00028219,2]
[322174721,1712863873567,-146.58272707,0.00028219,2]
[322174722,1712863873579,-511.17986947,0.00028219,2]
[322174723,1712863873767,-309.93013053,0.00028219,2]
[322174724,1712863873777,-500.0,0.00028219,2]
[322174725,1712863873786,-520.41,0.00028219,2]
[322174726,1712863873797,-500.0,0.00028219,2]
[322174727,1712863873809,-500.0,0.00028219,2]
[322174728,1712863873821,-649.6,0.00028219,2]
[322174729,1712863873830,-855.37,0.00028219,2]
[322174730,1712863873840,-500.0,0.00028219,2]
[322174731,1712863873849,-649.39,0.00028219,2]
[322174732,1712863873858,-832.74,0.00028219,2]
[322174733,1712863873868,-500.0,0.00028219,2]
[322174734,1712863873878,-500.0,0.00028219,2]
[322174735,1712863873888,-500.0,0.00028219,2]
[322174736,1712863873899,-2180.86,0.00028219,2]
[322174737,1712863873909,-500.0,0.00028219,2]
[322174738,1712863873918,-1399.6,0.00028219,2]
[322174739,1712863873927,-500.0,0.00028219,2]
[322174740,1712863873937,-500.0,0.00028219,2]
[322174741,1712863873946,-626.17,0.00028219,2]
[322174742,1712863873956,-1778.24,0.00028219,2]
[322174743,1712863873966,-1158.17,0.00028219,2]
[322174744,1712863873975,-500.0,0.00028219,2]
[322174745,1712863873985,-500.0,0.00028219,2]
[322174746,1712863873996,-500.0,0.00028219,2]
[322174747,1712863874005,-500.0,0.00028219,2]
[322174748,1712863874015,-638.17,0.00028219,2]
[322174749,1712863874024,-500.0,0.00028219,2]
[322174750,1712863874034,-500.0,0.00028219,2]
[322174751,1712863874044,-542.85,0.00028219,2]
[322174752,1712863874054,-500.0,0.00028219,2]
[322174753,1712863874064,-1858.63,0.00028219,2]
[322174754,1712863874076,-500.0,0.00028219,2]
[322174755,1712863874085,-500.0,0.00028219,2]
[322174756,1712863874095,-500.0,0.00028219,2]
[322174757,1712863874105,-776.82,0.00028219,2]
[322174758,1712863874114,-500.0,0.00028219,2]
[322174759,1712863874124,-500.0,0.00028219,2]
[322174760,1712863874133,-500.0,0.00028219,2]
[322174761,1712863874143,-500.0,0.00028219,2]
[322174762,1712863874153,-524.59,0.00028219,2]
[322174763,1712863874162,-500.0,0.00028219,2]
[322174764,1712863874171,-500.0,0.00028219,2]
[322174765,1712863874181,-539.06,0.00028219,2]
[322174766,1712863874190,-500.0,0.00028219,2]
[322174767,1712863874199,-1089.41,0.00028219,2]
[322174768,1712863874209,-500.0,0.00028219,2]
[322174769,1712863874218,-1111.79,0.00028219,2]
[322174770,1712863874227,-500.0,0.00028219,2]
[322174771,1712863874237,-500.0,0.00028219,2]
[322174772,1712863874246,-656.89,0.00028219,2]
[322174773,1712863874256,-156.140992,0.00028219,7]
[322174774,1712863874265,-500.0,0.00028219,2]
[322174775,1712863874275,-500.0,0.00028219,2]
[322174776,1712863874285,-156.140992,0.00028219,7]
[322174777,1712863874294,-854.73,0.00028219,2]
[322174778,1712863874304,-500.0,0.00028219,2]
[322174779,1712863874313,-434.07282807,0.00028219,2]
[322174780,1712863874323,-2876.44,0.00028219,2]
[322174781,1712863874332,-500.0,0.00028219,2]
[322174782,1712863874342,-590.9,0.00028219,2]
[322174783,1712863874351,-1195.47,0.00028219,2]
[322174784,1712863874361,-1802.49,0.00028219,2]
[322174785,1712863874370,-500.0,0.00028219,2]
[322174786,1712863874379,-500.0,0.00028219,2]
[322174787,1712863874389,-500.0,0.00028219,2]
[322174788,1712863874398,-687.99,0.00028219,2]
[322174789,1712863874407,-500.0,0.00028219,2]
[322174790,1712863874417,-500.0,0.00028219,2]
[322174791,1712863874428,-500.0,0.00028219,2]
[322174792,1712863874437,-688.71,0.00028219,2]
[322174793,1712863874449,-812.38,0.00028219,2]
[322174794,1712863874459,-500.0,0.00028219,2]
[322174795,1712863874469,-500.0,0.00028219,2]
[322174796,1712863874480,-911.26,0.00028219,2]
[322174797,1712863874490,-1387.07,0.00028219,2]
[322174798,1712863874499,-1238.46,0.00028219,2]
[322174799,1712863874509,-701.45,0.00028219,2]
[322174800,1712863874527,-500.0,0.00028219,2]
[322174801,1712863874540,-500.0,0.00028219,2]
[322174802,1712863874550,-1637.96,0.00028219,2]
[322174803,1712863874559,-500.0,0.00028219,2]
[322174804,1712863874570,-500.0,0.00028219,2]
[322174805,1712863874580,-500.0,0.00028219,2]
[322174806,1712863874595,-727.26,0.00028219,2]
[322174807,1712863874606,-500.0,0.00028219,2]
[322174808,1712863874617,-500.0,0.00028219,2]
[322174809,1712863874627,-951.93,0.00028219,2]
[322174810,1712863874638,-912.94,0.00028219,2]
[322174811,1712863874649,-1360.26,0.00028219,2]
[322174812,1712863874658,-1633.79,0.00028219,2]
[322174813,1712863874668,-571.0,0.00028219,2]
[322174814,1712863874679,-500.0,0.00028219,2]
[322174815,1712863874691,-1497.81,0.00028219,2]
[322174816,1712863874701,-1592.01,0.00028219,2]
[322174817,1712863874712,-500.0,0.00028219,2]
[322174818,1712863874721,-500.0,0.00028219,2]
[322174819,1712863874742,-1649.12,0.00028219,2]
[322174820,1712863874768,-980.99,0.00028219,2]
[322174821,1712863874789,-500.0,0.00028219,2]
[322174822,1712863874811,-969.84,0.00028219,2]
[322174823,1712863874834,-500.0,0.00028219,2]
[322174824,1712863874854,-500.0,0.00028219,2]
[322174825,1712863874873,-500.0,0.00028219,2]
[322174826,1712863874893,-500.0,0.00028219,2]
[322174827,1712863874915,-1243.08,0.00028219,2]
[322174828,1712863874933,-500.0,0.00028219,2]
[322174829,1712863874956,-1761.18,0.00028219,2]
[322174830,1712863874973,-1689.77,0.00028219,2]
[322174831,1712863874993,-500.0,0.00028219,2]
[322174832,1712863875011,-500.0,0.00028219,2]
[322174833,1712863875026,-500.0,0.00028219,2]
[322174834,1712863875044,-500.0,0.00028219,2]
[322174835,1712863875058,-1026.47,0.00028219,2]
[322174836,1712863875073,-500.0,0.00028219,2]
[322174837,1712863875100,-500.0,0.00028219,2]
[322174838,1712863875120,-910.91,0.00028219,2]
[322174839,1712863875138,-500.0,0.00028219,2]
[322174840,1712863875155,-1567.65,0.00028219,2]
[322174841,1712863875184,-500.0,0.00028219,2]
[322174842,1712863875208,-786.72,0.00028219,2]
[322174843,1712863875231,-1996.86,0.00028219,2]
[322174844,1712863875250,-1085.94,0.00028219,2]
[322174845,1712863875270,-500.0,0.00028219,2]
[322174846,1712863875288,-500.0,0.00028219,2]
[322174847,1712863875306,-816.08,0.00028219,2]
[322174848,1712863875323,-1561.86,0.00028219,2]
[322174849,1712863875340,-1269.43,0.00028219,2]
[322174850,1712863875357,-1877.69,0.00028219,2]
[322174851,1712863875373,-500.0,0.00028219,2]
[322174852,1712863875391,-1972.42,0.00028219,2]
[322174853,1712863875406,-500.0,0.00028219,2]
[322174854,1712863875422,-2113.97,0.00028219,2]
[322174855,1712863875439,-500.0,0.00028219,2]
[322174856,1712863875456,-966.14,0.00028219,2]
[322174857,1712863875472,-500.0,0.00028219,2]
[322174858,1712863875489,-500.0,0.00028219,2]
[322174859,1712863875504,-500.0,0.00028219,2]
[322174860,1712863875519,-761.76,0.00028219,2]
[322174861,1712863875534,-249.33,0.00028219,2]
[322174862,1712863875551,-500.0,0.00028219,2]
[322174863,1712863875567,-1089.8,0.00028219,2]
[322174864,1712863875583,-500.0,0.00028219,2]
[322174865,1712863875601,-500.0,0.00028219,2]
[322174866,1712863875617,-274.18024069,0.00028219,2]
[322174867,1712863875632,-2037.49,0.00028219,2]
[322174868,1712863875657,-1173.13,0.00028219,2]
[322174869,1712863875676,-500.0,0.00028219,2]
[322174870,1712863875696,-500.0,0.00028219,2]
[322174871,1712863875713,-793.23,0.00028219,2]
[322174872,1712863875729,-500.0,0.00028219,2]
[322174873,1712863875745,-2726.32,0.00028219,2]
[322174874,1712863875762,-500.0,0.00028219,2]
[322174875,1712863875778,-692.78,0.00028219,2]
[322174876,1712863875794,-746.58,0.00028219,2]
[322174877,1712863875810,-1198.98,0.00028219,2]
[322174878,1712863875825,-184.43218335,0.00028219,2]
[322174879,1712863875841,-1215.62,0.00028219,2]
[322174880,1712863875857,-1357.74,0.00028219,2]
[322174881,1712863875872,-1787.05,0.00028219,2]
[322174882,1712863875887,-773.26,0.00028219,2]
[322174883,1712863875903,-500.0,0.00028219,2]
[322174884,1712863875918,-500.0,0.00028219,2]
[322174885,1712863875932,-1160.82,0.00028219,2]
[322174886,1712863875947,-856.28,0.00028219,2]
[322174887,1712863875961,-2284.7,0.00028219,2]
[322174888,1712863875976,-500.0,0.00028219,2]
[322174889,1712863875992,-500.0,0.00028219,2]
[322174890,1712863876007,-1712.28,0.00028219,2]
[322174891,1712863876021,-1447.07,0.00028219,2]
[322174892,1712863876036,-1043.02,0.00028219,2]
[322174893,1712863876052,-500.0,0.00028219,2]
[322174894,1712863876067,-999.23,0.00028219,2]
[322174895,1712863876084,-500.0,0.00028219,2]
[322174896,1712863876099,-880.42,0.00028219,2]
[322174897,1712863876112,-500.0,0.00028219,2]
[322174898,1712863876122,-1769.53,0.00028219,2]
[322174899,1712863876131,-909.93,0.00028219,2]
[322174900,1712863876141,-500.0,0.00028219,2]
[322174901,1712863876150,-731.37,0.00028219,2]
[322174902,1712863876159,-563.4,0.00028219,2]
[322174903,1712863876169,-2584.91,0.00028219,2]
[322174904,1712863876178,-500.0,0.00028219,2]
[322174905,1712863876188,-500.0,0.00028219,2]
[322174906,1712863876197,-500.0,0.00028219,2]
[322174907,1712863876206,-500.0,0.00028219,2]
[322174908,1712863876215,-836.78,0.00028219,2]
[322174909,1712863876225,-500.0,0.00028219,2]
[322174910,1712863876234,-500.0,0.00028219,2]
[322174911,1712863876244,-500.0,0.00028219,2]
[322174912,1712863876253,-500.0,0.00028219,2]
[322174913,1712863876263,-500.0,0.00028219,2]
[322174914,1712863876273,-1928.08,0.00028219,2]
[322174915,1712863876282,-1054.17,0.00028219,2]
[322174916,1712863876291,-500.0,0.00028219,2]
[322174917,1712863876301,-500.0,0.00028219,2]
[322174918,1712863876310,-500.0,0.00028219,2]
[322174919,1712863876319,-1287.39,0.00028219,2]
[322174920,1712863876329,-512.98713278,0.00028219,2]
[322174921,1712863876338,-1131.99,0.00028219,2]
[322174922,1712863876348,-500.0,0.00028219,2]
[322174923,1712863876357,-670.56,0.00028219,2]
[322174924,1712863876366,-1218.52,0.00028219,2]
[322174925,1712863876375,-500.0,0.00028219,2]
[322174926,1712863876385,-500.0,0.00028219,2]
[322174927,1712863876394,-500.0,0.00028219,2]
[322174928,1712863876403,-500.0,0.00028219,2]
[322174929,1712863876413,-500.0,0.00028219,2]
[322174930,1712863876422,-3023.85,0.00028219,2]
[322174931,1712863876431,-1925.75,0.00028219,2]
[322174932,1712863876441,-1413.49,0.00028219,2]
[322174933,1712863876450,-500.0,0.00028219,2]
[322174934,1712863876460,-1314.42,0.00028219,2]
[322174935,1712863876469,-946.59,0.00028219,2]
[322174936,1712863876478,-500.0,0.00028219,2]
[322174937,1712863876488,-500.0,0.00028219,2]
[322174938,1712863876926,-1299.32,0.00028219,2]
[322174939,1712863876960,-1451.55,0.00028219,2]
[322174940,1712863876983,-657.55,0.00028219,2]
[322174941,1712863877001,-1859.86,0.00028219,2]
[322174942,1712863877012,-1299.55,0.00028219,2]
[322174943,1712863877021,-500.0,0.00028219,2]
[322174944,1712863877030,-500.0,0.00028219,2]
[322174945,1712863877040,-500.0,0.00028219,2]
[322174946,1712863877049,-1118.53,0.00028219,2]
[322174947,1712863877059,-500.0,0.00028219,2]
[322174948,1712863877068,-500.0,0.00028219,2]
[322174949,1712863877078,-493.8261448,0.00028219,2]
[322174950,1712863877087,-500.0,0.00028219,2]
[322174951,1712863877096,-500.0,0.00028219,2]
[322174952,1712863877106,-500.0,0.00028219,2]
[322174953,1712863877115,-500.0,0.00028219,2]
[322174954,1712863877125,-690.5,0.00028219,2]
[322174955,1712863877134,-820.46,0.00028219,2]
[322174956,1712863877143,-1746.83,0.00028219,2]
[322174957,1712863877152,-435.54090287,0.00028219,2]
[322174958,1712863877162,-1556.05,0.00028219,2]
[322174959,1712863877171,-2701.17,0.00028219,2]
[322174960,1712863877180,-500.0,0.00028219,2]
[322174961,1712863877190,-500.0,0.00028219,2]
[322174962,1712863877199,-500.0,0.00028219,2]
[322174963,1712863877208,-500.0,0.00028219,2]
[322174964,1712863877217,-500.0,0.00028219,2]